fUST/lending_fUST_20250906
["ID","MTS","AMOUNT","RATE_DAILY","PERIOD"]
[383821233,1757131846845,-480.0,0.00013698,2]
[383821234,1757131846853,-480.0,0.00013698,2]
[383821235,1757131846862,-482.26292009,0.00013698,2]
[383821236,1757131846871,-480.0,0.00013698,2]
[383821237,1757131846879,-480.0,0.00013698,2]
[383821238,1757131846887,-480.0,0.00013698,2]
[383821239,1757131846896,-1007.13850982,0.00013698,2]
[383821240,1757131846907,-480.0,0.00013698,2]
[383821241,1757131846916,-480.0,0.00013698,2]
[383821242,1757131846927,-480.0,0.00013698,2]
[383821243,1757131846937,-480.0,0.00013698,2]
[383821244,1757131846947,-481.01759052,0.00013698,2]
[383821245,1757131846957,-480.0,0.00013698,2]
[383821246,1757131846967,-485.00222767,0.00013698,2]
[383821247,1757131846978,-480.0,0.00013698,2]
[383821248,1757131846988,-480.0,0.00013698,2]
[383821249,1757131846998,-500.0,0.00013698,2]
[383821250,1757131847008,-500.0,0.00013698,2]
[383821251,1757131847018,-500.0,0.00013698,2]
[383821252,1757131847028,-500.0,0.00013698,2]
[383821253,1757131847038,-500.0,0.00013698,2]
[383821254,1757131847050,-480.0,0.00013698,2]
[383821255,1757131847059,-500.0,0.00013698,2]
[383821256,1757131847069,-500.0,0.00013698,2]
[383821257,1757131847079,-500.0,0.00013698,2]
[383821258,1757131847089,-500.0,0.00013698,2]
[383821259,1757131847099,-500.0,0.00013698,2]
[383821260,1757131847109,-500.0,0.00013698,2]
[383821261,1757131847118,-500.0,0.00013698,2]
[383821262,1757131847128,-1000.0,0.00013698,2]
[383821263,1757131847138,-500.0,0.00013698,2]
[383821264,1757131847149,-482.07745301,0.00013698,2]
[383821265,1757131847159,-480.0,0.00013698,2]
[383821266,1757131847168,-500.0,0.00013698,2]
[383821267,1757131847178,-500.0,0.00013698,2]
[383821268,1757131847188,-480.0,0.00013698,2]
[383821269,1757131847197,-500.0,0.00013698,2]
[383821270,1757131847213,-480.0,0.00013698,2]
[383821271,1757131847225,-500.0,0.00013698,2]
[383821272,1757131847235,-500.0,0.00013698,2]
[383821273,1757131847245,-664.29,0.00013698,2]
[383821274,1757131847254,-500.0,0.00013698,2]
[383821275,1757131847264,-500.0,0.00013698,2]
[383821276,1757131847274,-480.0,0.00013698,2]
[383821277,1757131847284,-500.0,0.00013698,2]
[383821278,1757131847294,-480.0,0.00013698,2]
[383821279,1757131847304,-500.0,0.00013698,2]
[383821280,1757131847314,-381.66912787,0.00013698,2]
[383821281,1757131847451,-480.0,0.00013698,2]
[383821282,1757131847462,-480.0,0.00013698,2]
[383821283,1757131847472,-480.0,0.00013698,2]
[383821284,1757131847481,-480.0,0.00013698,2]
[383821285,1757131847491,-484.10674718,0.00013698,2]
[383821286,1757131847500,-480.0,0.00013698,2]
[383821287,1757131847510,-238.22817435,0.00013698,2]
[383821288,1757131847519,-480.0,0.00013698,2]
[383821289,1757131847529,-480.62417455,0.00013698,2]
[383821290,1757131847539,-481.40810473,0.00013698,2]
[383821291,1757131847551,-480.0,0.00013698,2]
[383821292,1757131847564,-480.0,0.00013698,2]
[383821293,1757131847575,-480.0,0.00013698,2]
[383821294,1757131847584,-480.0,0.00013698,2]
[383821295,1757131847593,-482.0273033,0.00013698,2]
[383821296,1757131847602,-480.0,0.00013698,2]
[383821297,1757131847613,-480.0,0.00013698,2]
[383821298,1757131847623,-480.0,0.00013698,2]
[383821299,1757131847632,-480.0,0.00013698,2]
[383821300,1757131847643,-480.0,0.00013698,2]
[383821301,1757131847653,-480.0,0.00013698,2]
[383821302,1757131847662,-484.04635469,0.00013698,2]
[383821303,1757131847671,-480.0,0.00013698,2]
[383821304,1757131847680,-480.0,0.00013698,2]
[383821305,1757131847690,-480.0,0.00013698,2]
[383821306,1757131847699,-480.0,0.00013698,2]
[383821307,1757131847708,-4561.88,0.00013698,2]
[383821308,1757131847717,-480.0,0.00013698,2]
[383821309,1757131847727,-480.0,0.00013698,2]
[383821310,1757131847736,-480.0,0.00013698,2]
[383821311,1757131847745,-480.0,0.00013698,2]
[383821312,1757131847754,-481.97245701,0.00013698,2]
[383821313,1757131847764,-331.33798338,0.00013698,2]
[383821314,1757131847774,-500.0,0.00013698,2]
[383821315,1757131847784,-480.0,0.00013698,2]
[383821316,1757131847794,-500.0,0.00013698,2]
[383821317,1757131847803,-484.19773027,0.00013698,2]
[383821318,1757131847813,-480.0,0.00013698,2]
[383821319,1757131847823,-843.23,0.00013698,2]
[383821320,1757131847832,-480.0,0.00013698,2]
[383821321,1757131847842,-480.0,0.00013698,2]
[383821322,1757131847851,-480.0,0.00013698,2]
[383821323,1757131847861,-482.22726583,0.00013698,2]
[383821324,1757131847870,-985.5,0.00013698,2]
[383821325,1757131847880,-480.0,0.00013698,2]
[383821326,1757131847889,-480.0,0.00013698,2]
[383821327,1757131847899,-480.0,0.00013698,2]
[383821328,1757131847908,-480.0,0.00013698,2]
[383821329,1757131847917,-480.0,0.00013698,2]
[383821330,1757131847927,-480.0,0.00013698,2]
[383821331,1757131847937,-482.32257911,0.00013698,2]
[383821332,1757131847947,-480.0,0.00013698,2]
[383821333,1757131847957,-480.0,0.00013698,2]
[383821334,1757131847967,-480.0,0.00013698,2]
[383821335,1757131847976,-480.0,0.00013698,2]
[383821336,1757131847986,-480.0,0.00013698,2]
[383821337,1757131847995,-521.25,0.00013698,2]
[383821338,1757131848005,-480.0,0.00013698,2]
[383821339,1757131848015,-480.0,0.00013698,2]
[383821340,1757131848024,-480.0,0.00013698,2]
[383821341,1757131848033,-480.0,0.00013698,2]
[383821342,1757131848043,-773.25,0.00013698,2]
[383821343,1757131848053,-480.88194828,0.00013698,2]
[383821344,1757131848061,-481.72745752,0.00013698,2]
[383821345,1757131848070,-480.0,0.00013698,2]
[383821346,1757131848080,-482.09568626,0.00013698,2]
[383821347,1757131848089,-480.0,0.00013698,2]
[383821348,1757131848099,-480.19310636,0.00013698,2]
[383821349,1757131848112,-480.0,0.00013698,2]
[383821350,1757131848122,-480.0,0.00013698,2]
[383821351,1757131848132,-480.0,0.00013698,2]
[383821352,1757131848142,-553.4,0.00013698,2]
[383821353,1757131848152,-480.0,0.00013698,2]
[383821354,1757131848162,-480.0,0.00013698,2]
[383821355,1757131848172,-480.85997592,0.00013698,2]
[383821356,1757131848182,-480.0,0.00013698,2]
[383821357,1757131848192,-480.0,0.00013698,2]
[383821358,1757131848202,-480.0,0.00013698,2]
[383821359,1757131848212,-480.0,0.00013698,2]
[383821360,1757131848222,-480.0,0.00013698,2]
[383821361,1757131848232,-480.0,0.00013698,2]
[383821362,1757131848241,-723.718165,0.00013699,2]
[383821363,1757131848251,-1979.045754,0.00013699,2]
[383821364,1757131848261,-219.210025,0.00013699,2]
[383821365,1757131848270,-153.880679,0.00013699,2]
[383821366,1757131848280,-151.0,0.00013699,2]
[383821367,1757131848290,-151.0,0.00013699,2]
[383821368,1757131848300,-151.0,0.00013699,2]
[383821369,1757131848310,-151.0,0.00013699,2]
[383821370,1757131848320,-151.0,0.00013699,2]
[383821371,1757131848330,-151.0,0.00013699,2]
[383821372,1757131848339,-151.0,0.00013699,2]
[383821373,1757131848349,-151.0,0.00013699,2]
[383821374,1757131848359,-151.0,0.00013699,2]
[383821375,1757131848369,-151.0,0.00013699,2]
[383821376,1757131848379,-151.0,0.00013699,2]
[383821377,1757131848390,-151.0,0.00013699,2]
[383821378,1757131848400,-252.020525,0.00013699,2]
[383821379,1757131848410,-4086.7268533,0.00013699,2]
[383821380,1757131848420,-151.0,0.00013699,2]
[383821381,1757131848430,-151.0,0.00013699,2]
[383821382,1757131848440,-151.0,0.00013699,2]
[383821383,1757131848451,-151.0,0.00013699,2]
[383821384,1757131848461,-151.0,0.00013699,2]
[383821385,1757131848471,-151.0,0.00013699,2]
[383821386,1757131848481,-151.0,0.00013699,2]
[383821387,1757131848492,-151.0,0.00013699,2]
[383821388,1757131848502,-151.0,0.00013699,2]
[383821389,1757131848512,-205.190994,0.00013699,2]
[383821390,1757131848522,-151.0,0.000137,2]
[383821391,1757131848532,-151.0,0.000137,2]
[383821392,1757131848541,-168.0,0.00013709,2]
[383821393,1757131848551,-800.0,0.00013716,2]
[383821394,1757131848561,-800.0,0.00013717,2]
[383821395,1757131848574,-168.0,0.00013723,2]
[383821396,1757131848583,-168.0,0.00013727,2]
[383821397,1757131848593,-475.15738428,0.00013731,2]
[383821398,1757131848604,-300.0,0.00013741,2]
[383821399,1757131848616,-300.0,0.00013741,2]
[383821400,1757131848626,-300.0,0.00013741,2]
[383821401,1757131848637,-300.0,0.00013741,2]
[383821402,1757131848647,-300.0,0.00013741,2]
[383821403,1757131848658,-300.0,0.00013741,2]
[383821404,1757131848668,-300.0,0.00013741,2]
[383821405,1757131848678,-300.0,0.00013741,2]
[383821406,1757131848688,-300.0,0.00013741,2]
[383821407,1757131848698,-300.0,0.00013741,2]
[383821408,1757131848708,-300.0,0.00013741,2]
[383821409,1757131848718,-300.0,0.00013741,2]
[383821410,1757131848728,-300.0,0.00013741,2]
[383821411,1757131848738,-300.0,0.00013741,2]
[383821412,1757131848747,-300.0,0.00013741,2]
[383821413,1757131848757,-151.0,0.000138,2]
[383821414,1757131848767,-151.0,0.000138,2]
[383821415,1757131848776,-151.0,0.000138,2]
[383821416,1757131848786,-151.0,0.000138,2]
[383821417,1757131848796,-151.0,0.000138,2]
[383821418,1757131848806,-151.0,0.000138,2]
[383821419,1757131848815,-151.0,0.000138,2]
[383821420,1757131848825,-475.15738428,0.00013802,2]
[383821421,1757131848834,-168.0,0.0001382,2]
[383821422,1757131848844,-168.0,0.00013825,2]
[383821423,1757131848855,-175.2096525,0.00013864,2]
[383821424,1757131848865,-157.0,0.00013864,2]
[383821425,1757131848875,-157.0,0.00013864,2]
[383821426,1757131848885,-500.0,0.00013864,2]
[383821427,1757131848895,-475.15738428,0.00013872,2]
[383821428,1757131848906,-161.45837272,0.00013872,2]
[383821429,1757131848916,-800.0,0.00013889,2]
[383821430,1757131848926,-151.0,0.000139,2]
[383821431,1757131848937,-151.0,0.000139,2]
[383821432,1757131848948,-151.0,0.000139,2]
[383821433,1757131848958,-388.4804453,0.000139,2]
[383821434,1757131848968,-151.0,0.000139,2]
[383821435,1757131848978,-151.0,0.000139,2]
[383821436,1757131848988,-151.0,0.000139,2]
[383821437,1757131848998,-467.74,0.000139,2]
[383821438,1757131849008,-388.4804453,0.000139,2]
[383821439,1757131849018,-388.4804453,0.000139,2]
[383821440,1757131849028,-388.5765985,0.000139,2]
[383821441,1757131849038,-160.0,0.00013916,2]
[383821442,1757131849048,-203.21852024,0.00013919,2]
[383821443,1757131849059,-160.0,0.00013919,2]
[383821444,1757131849069,-160.0,0.00013919,2]
[383821445,1757131849078,-160.0,0.00013919,2]
[383821446,1757131849088,-4594.90398482,0.00013925,2]
[383821447,1757131849097,-157.0,0.00013945,2]
[383821448,1757131849107,-245.65814477,0.00013945,2]
[383821449,1757131849118,-600.0,0.00013971,2]
[383821450,1757131849128,-200.99911874,0.00013971,2]
[383821451,1757131849138,-481.57607331,0.00013972,2]
[383821452,1757131849148,-480.0,0.00013972,2]
[383821453,1757131849158,-480.93839701,0.00013972,2]
[383821454,1757131849168,-481.01063706,0.00013972,2]
[383821455,1757131849178,-480.0,0.00013972,2]
[383821456,1757131849187,-480.0,0.00013972,2]
[383821457,1757131849197,-480.77852042,0.00013972,2]
[383821458,1757131849207,-483.58544484,0.00013972,2]
[383821459,1757131849217,-480.0,0.00013972,2]
[383821460,1757131849227,-480.0,0.00013972,2]
[383821461,1757131849237,-480.0,0.00013972,2]
[383821462,1757131849247,-483.57389657,0.00013972,2]
[383821463,1757131849257,-480.0,0.00013972,2]
[383821464,1757131849267,-480.0,0.00013972,2]
[383821465,1757131849277,-480.0,0.00013972,2]
[383821466,1757131849286,-480.0,0.00013972,2]
[383821467,1757131849297,-480.0,0.00013972,2]
[383821468,1757131849307,-480.0,0.00013972,2]
[383821469,1757131849316,-480.0,0.00013972,2]
[383821470,1757131849326,-480.0,0.00013972,2]
[383821471,1757131849336,-480.0,0.00013972,2]
[383821472,1757131849345,-236.44006626,0.00013972,2]
[383821473,1757131849356,-480.0,0.00013972,2]
[383821474,1757131849365,-480.0,0.00013972,2]
[383821475,1757131849374,-480.0,0.00013972,2]
[383821476,1757131849384,-480.0,0.00013972,2]
[383821477,1757131849393,-480.0,0.00013972,2]
[383821478,1757131849403,-371.51208648,0.00013972,2]
[383821479,1757131849412,-318.94052838,0.00013972,2]
[383821480,1757131849422,-480.0,0.00013972,2]
[383821481,1757131849432,-480.0,0.00013972,2]
[383821482,1757131849441,-480.0,0.00013972,2]
[383821483,1757131849450,-480.0,0.00013972,2]
[383821484,1757131849459,-480.0,0.00013972,2]
[383821485,1757131849467,-383.43997895,0.00013972,2]
[383821486,1757131849476,-480.0,0.00013972,2]
[383821487,1757131849486,-480.0,0.00013972,2]
[383821488,1757131849495,-480.0,0.00013972,2]
[383821489,1757131849505,-480.0,0.00013972,2]
[383821490,1757131849516,-480.0,0.00013972,2]
[383821491,1757131849525,-480.0,0.00013972,2]
[383821492,1757131849535,-480.0,0.00013972,2]
[383821493,1757131849544,-480.0,0.00013972,2]
[383821494,1757131849553,-485.91372658,0.00013972,2]
[383821495,1757131849565,-480.0,0.00013972,2]
[383821496,1757131849575,-268.57946047,0.00013972,2]
[383821497,1757131849584,-480.0,0.00013972,2]
[383821498,1757131849594,-480.0,0.00013972,2]
[383821499,1757131849604,-481.80626009,0.00013972,2]
[383821500,1757131849616,-480.0,0.00013972,2]
[383821501,1757131849626,-480.0,0.00013972,2]
[383821502,1757131849635,-486.55325116,0.00013972,2]
[383821503,1757131849647,-480.0,0.00013972,2]
[383821504,1757131849657,-481.77836839,0.00013972,2]
[383821505,1757131849666,-480.0,0.00013972,2]
[383821506,1757131849675,-480.0,0.00013972,2]
[383821507,1757131849685,-480.0,0.00013972,2]
[383821508,1757131849694,-480.0,0.00013972,2]
[383821509,1757131849704,-480.0,0.00013972,2]
[383821510,1757131849715,-480.0,0.00013972,2]
[383821511,1757131849724,-483.72149345,0.00013972,2]
[383821512,1757131849734,-480.0,0.00013972,2]
[383821513,1757131849743,-480.0,0.00013972,2]
[383821514,1757131849754,-480.0,0.00013972,2]
[383821515,1757131849764,-480.0,0.00013972,2]
[383821516,1757131849774,-481.39317428,0.00013972,2]
[383821517,1757131849783,-482.51886478,0.00013972,2]
[383821518,1757131849791,-482.81919,0.00013972,2]
[383821519,1757131849800,-481.32164946,0.00013972,2]
[383821520,1757131849809,-480.0,0.00013972,2]
[383821521,1757131849925,-480.0,0.00013972,2]
[383821522,1757131849936,-480.0,0.00013972,2]
[383821523,1757131849945,-480.83565777,0.00013972,2]
[383821524,1757131849955,-481.17798576,0.00013972,2]
[383821525,1757131849964,-480.0,0.00013972,2]
[383821526,1757131849974,-481.77880227,0.00013972,2]
[383821527,1757131849984,-480.0,0.00013972,2]
[383821528,1757131849994,-480.54072939,0.00013972,2]
[383821529,1757131850003,-482.02623718,0.00013972,2]
[383821530,1757131850015,-480.91483394,0.00013972,2]
[383821531,1757131850025,-480.0,0.00013972,2]
[383821532,1757131850035,-480.79726096,0.00013972,2]
[383821533,1757131850044,-480.0,0.00013972,2]
[383821534,1757131850054,-480.0,0.00013972,2]
[383821535,1757131850064,-480.0,0.00013972,2]
[383821536,1757131850074,-480.0,0.00013972,2]
[383821537,1757131850083,-480.0,0.00013972,2]
[383821538,1757131850093,-480.0,0.00013972,2]
[383821539,1757131850103,-169.6638431,0.00013972,2]
[383821540,1757131850112,-480.0,0.00013972,2]
[383821541,1757131850122,-480.0,0.00013972,2]
[383821542,1757131850131,-480.0,0.00013972,2]
[383821543,1757131850141,-480.0,0.00013972,2]
[383821544,1757131850151,-481.20200633,0.00013972,2]
[383821545,1757131850160,-497.26180915,0.00013972,2]
[383821546,1757131850170,-480.0,0.00013972,2]
[383821547,1757131850180,-481.56877535,0.00013972,2]
[383821548,1757131850190,-480.0,0.00013972,2]
[383821549,1757131850199,-480.0,0.00013972,2]
[383821550,1757131850209,-480.0,0.00013972,2]
[383821551,1757131850218,-486.86930627,0.00013972,2]
[383821552,1757131850228,-483.40738805,0.00013972,2]
[383821553,1757131850238,-480.0,0.00013972,2]
[383821554,1757131850247,-483.92103037,0.00013972,2]
[383821555,1757131850256,-481.22094941,0.00013972,2]
[383821556,1757131850268,-480.0,0.00013972,2]
[383821557,1757131850277,-482.80591018,0.00013972,2]
[383821558,1757131850287,-480.0,0.00013972,2]
[383821559,1757131850295,-485.1227262,0.00013972,2]
[383821560,1757131850305,-481.61196086,0.00013972,2]
[383821561,1757131850314,-480.0,0.00013972,2]
[383821562,1757131850323,-167.70871752,0.00013972,2]
[383821563,1757131850333,-491.46936969,0.00013972,2]
[383821564,1757131850343,-482.85508062,0.00013972,2]
[383821565,1757131850353,-245.88660548,0.00013972,2]
[383821566,1757131850363,-480.0,0.00013972,2]
[383821567,1757131850373,-480.0,0.00013972,2]
[383821568,1757131850383,-481.71795782,0.00013972,2]
[383821569,1757131850392,-480.0,0.00013972,2]
[383821570,1757131850402,-484.64834256,0.00013972,2]
[383821571,1757131850411,-480.0,0.00013972,2]
[383821572,1757131850421,-480.82285507,0.00013972,2]
[383821573,1757131850431,-480.0,0.00013972,2]
[383821574,1757131850441,-480.0,0.00013972,2]
[383821575,1757131850451,-491.25138963,0.00013972,2]
[383821576,1757131850460,-480.0,0.00013972,2]
[383821577,1757131850470,-480.0,0.00013972,2]
[383821578,1757131850480,-482.90533493,0.00013972,2]
[383821579,1757131850491,-480.0,0.00013972,2]
[383821580,1757131850500,-480.1750996,0.00013972,2]
[383821581,1757131850512,-480.0,0.00013972,2]
[383821582,1757131850523,-480.0,0.00013972,2]
[383821583,1757131850533,-480.0,0.00013972,2]
[383821584,1757131850543,-480.0,0.00013972,2]
[383821585,1757131850554,-480.0,0.00013972,2]
[383821586,1757131850565,-480.0,0.00013972,2]
[383821587,1757131850576,-480.0,0.00013972,2]
[383821588,1757131850587,-482.18458964,0.00013972,2]
[383821589,1757131850597,-480.0,0.00013972,2]
[383821590,1757131850607,-482.63330895,0.00013972,2]
[383821591,1757131850617,-482.43341599,0.00013972,2]
[383821592,1757131850627,-480.0,0.00013972,2]
[383821593,1757131850637,-483.40571759,0.00013972,2]
[383821594,1757131850648,-480.0,0.00013972,2]
[383821595,1757131850658,-480.0,0.00013972,2]
[383821596,1757131850668,-483.28175647,0.00013972,2]
[383821597,1757131850678,-481.95034887,0.00013972,2]
[383821598,1757131850688,-480.0,0.00013972,2]
[383821599,1757131850698,-481.28200937,0.00013972,2]
[383821600,1757131850708,-480.0,0.00013972,2]
[383821601,1757131850718,-487.8409849,0.00013972,2]
[383821602,1757131850727,-480.0,0.00013972,2]
[383821603,1757131850737,-480.0,0.00013972,2]
[383821604,1757131850746,-480.0,0.00013972,2]
[383821605,1757131850755,-480.0,0.00013972,2]
[383821606,1757131850767,-480.0,0.00013972,2]
[383821607,1757131850777,-480.0,0.00013972,2]
[383821608,1757131850787,-480.0,0.00013972,2]
[383821609,1757131850797,-485.07863576,0.00013972,2]
[383821610,1757131850807,-480.0,0.00013972,2]
[383821611,1757131850817,-481.52017868,0.00013972,2]
[383821612,1757131850826,-483.12803564,0.00013972,2]
[383821613,1757131850836,-482.03621985,0.00013972,2]
[383821614,1757131850846,-480.0,0.00013972,2]
[383821615,1757131850856,-480.0,0.00013972,2]
[383821616,1757131850866,-480.0,0.00013972,2]
[383821617,1757131850876,-468.12031959,0.00013972,2]
[383821618,1757131850886,-480.0,0.00013972,2]
[383821619,1757131850896,-482.41445384,0.00013972,2]
[383821620,1757131850906,-480.0,0.00013972,2]
[383821621,1757131850915,-569.76292404,0.00013972,2]
[383821622,1757131850925,-519.59043917,0.00013972,2]
[383821623,1757131850936,-480.0,0.00013972,2]
[383821624,1757131850946,-480.0,0.00013972,2]
[383821625,1757131850956,-480.0,0.00013972,2]
[383821626,1757131850966,-505.37246912,0.00013972,2]
[383821627,1757131850975,-480.0,0.00013972,2]
[383821628,1757131850985,-481.04001931,0.00013972,2]
[383821629,1757131850995,-480.0,0.00013972,2]
[383821630,1757131851005,-480.0,0.00013972,2]
[383821631,1757131851015,-481.4007942,0.00013972,2]
[383821632,1757131851024,-483.65217531,0.00013972,2]
[383821633,1757131851033,-480.0,0.00013972,2]
[383821634,1757131851043,-480.0,0.00013972,2]
[383821635,1757131851053,-480.0,0.00013972,2]
[383821636,1757131851063,-487.13109292,0.00013972,2]
[383821637,1757131851073,-480.0,0.00013972,2]
[383821638,1757131851083,-480.0,0.00013972,2]
[383821639,1757131851092,-481.52682957,0.00013972,2]
[383821640,1757131851102,-483.47251557,0.00013972,2]
[383821641,1757131851111,-480.0,0.00013972,2]
[383821642,1757131851122,-480.0,0.00013972,2]
[383821643,1757131851131,-500.0,0.00013972,2]
[383821644,1757131851141,-437.94829271,0.00013972,2]
[383821645,1757131851151,-231.02744279,0.00013972,2]
[383821646,1757131851161,-490.32980837,0.00013972,2]
[383821647,1757131851171,-480.0,0.00013972,2]
[383821648,1757131851180,-480.0,0.00013972,2]
[383821649,1757131851190,-480.0,0.00013972,2]
[383821650,1757131851199,-484.53680964,0.00013972,2]
[383821651,1757131851210,-480.0,0.00013972,2]
[383821652,1757131851220,-480.0,0.00013972,2]
[383821653,1757131851230,-480.0,0.00013972,2]
[383821654,1757131851239,-480.0,0.00013972,2]
[383821655,1757131851248,-486.11049117,0.00013972,2]
[383821656,1757131851257,-481.59113547,0.00013972,2]
[383821657,1757131851267,-480.0,0.00013972,2]
[383821658,1757131851276,-480.0,0.00013972,2]
[383821659,1757131851286,-480.0,0.00013972,2]
[383821660,1757131851295,-480.0,0.00013972,2]
[383821661,1757131851304,-480.0,0.00013972,2]
[383821662,1757131851313,-480.0,0.00013972,2]
[383821663,1757131851321,-484.11960889,0.00013972,2]
[383821664,1757131851330,-480.0,0.00013972,2]
[383821665,1757131851339,-499.27363521,0.00013972,2]
[383821666,1757131851348,-480.0,0.00013972,2]
[383821667,1757131851357,-482.20014706,0.00013972,2]
[383821668,1757131851366,-480.0,0.00013972,2]
[383821669,1757131851375,-480.0,0.00013972,2]
[383821670,1757131851383,-480.0,0.00013972,2]
[383821671,1757131851393,-480.0,0.00013972,2]
[383821672,1757131851401,-490.70640921,0.00013972,2]
[383821673,1757131851410,-483.34758954,0.00013972,2]
[383821674,1757131851418,-480.0,0.00013972,2]
[383821675,1757131851426,-480.0,0.00013972,2]
[383821676,1757131851434,-480.0,0.00013972,2]
[383821677,1757131851442,-480.0,0.00013972,2]
[383821678,1757131851450,-480.0,0.00013972,2]
[383821679,1757131851458,-480.0,0.00013972,2]
[383821680,1757131851466,-480.0,0.00013972,2]
[383821681,1757131851475,-480.0,0.00013972,2]
[383821682,1757131851484,-481.87159865,0.00013972,2]
[383821683,1757131851493,-480.0,0.00013972,2]
[383821684,1757131851502,-480.0,0.00013972,2]
[383821685,1757131851511,-480.0,0.00013972,2]
[383821686,1757131851520,-480.0,0.00013972,2]
[383821687,1757131851529,-480.0,0.00013972,2]
[383821688,1757131851538,-480.0,0.00013972,2]
[383821689,1757131851546,-480.0,0.00013972,2]
[383821690,1757131851556,-165.15533904,0.00013972,2]
[383821691,1757131852299,-692.065313,0.00013519,2]
[383821692,1757131852309,-692.065313,0.00013519,2]
[383821693,1757131852318,-298.85451799,0.00013519,2]
[383821694,1757131852491,-269.05,0.00013519,2]
[383821833,1757132927055,9101.47561485,0.0001,2]
[383821834,1757132927580,10000.01,0.0001,2]
[383821835,1757132927601,4371.77807723,0.0001,2]
[383821836,1757132938971,194.23,0.00012329,2]
[383821837,1757132949384,161.86,0.00012329,2]
[383821842,1757132959794,809.31,0.00012329,2]
[383821865,1757133032312,-250.80761994,0.00013203,2]
[383821866,1757133032322,-120.68650132,0.00013497,2]
[383821869,1757133032335,-1079.31349868,0.00013497,2]
[383821870,1757133032344,-799.32594981,0.00013498,2]
[383821872,1757133032367,-400.67405019,0.00013498,2]
[383821873,1757133032377,-896.90495483,0.00013498,2]
[383821875,1757133032424,-53.11013455,0.00013498,2]
[383821876,1757133032434,-300.0,0.00013498,2]
[383821878,1757133032444,-300.0,0.00013498,2]
[383821880,1757133032453,-119.14769274,0.00013498,2]
[383821883,1757133032465,-180.85230726,0.00013498,2]
[383821884,1757133032474,-300.0,0.00013498,2]
[383821885,1757133032483,-3916.14769272,0.000135,2]
[383821886,1757133032495,-760.66583154,0.000135,2]
[383821887,1757133032506,-333.46923112,0.000135,2]
[383821888,1757133032517,-8677.3910473,0.000135,2]
[383821926,1757133038447,-530.64083125,0.000135,2]
[383821928,1757133038459,-1930.171218,0.000135,2]
[383822150,1757133040593,-433.33155169,0.000135,2]
[383822152,1757133040605,-284.76195289,0.000135,2]
[383822334,1757133042493,-0.03109199,0.000135,2]
[383822344,1757133042577,4462.83192277,0.00012686,2]
[383822348,1757133042602,5543.39280323,0.00012686,2]
[383822465,1757133043690,-32723.6395515,0.000135,2]
[383822468,1757133043701,-152.11684643,0.00013598,2]
[383822470,1757133043712,-5598.55249863,0.00013598,2]
[383822723,1757133046226,300.0,0.00012939,2]
[383822816,1757133047218,300.0,0.00012939,2]
[383822822,1757133047282,300.0,0.00012939,2]
[383822871,1757133047823,300.0,0.00012939,2]
[383822926,1757133048403,300.0,0.00012939,2]
[383822966,1757133048971,300.0,0.00012939,2]